Cogmind - Beta 14 @@@ ROGUE MODE // 2024.08.09 @ 14:17:34 Player: Decinym Result: Destroyed by G-67 Veteran with Field Laser Performance ------------- Evolutions (6) 3000 Regions Visited (18) 3600 Robots Destroyed (149) 745 Value Destroyed (7049) 7049 Prototype IDs (52) 1040 Alien Tech Used (0) 0 Bonus (6199) 6199 TOTAL SCORE: 21633 Bonus ------- High Alert Combat Kills 841 Follower Combat Kills 3758 Network Hubs Disabled 200 Delivered SUBCON Basin 2000 Registered with UFD 300 Met Imprinter 300 Destroyed Z-Imprinter 1000 Triggered Deep Caves Wall 500 Exposed GOLEM Chamber 500 Built Enhanced Grunts 300 A7 Reached Mainframe 300 Met R17 at Cetus 500 Friendly Fire -4300 Cogmind --------- Core Integrity 0/1150 Matter 275/300 Energy 1100/1100 System Corruption 10% Temperature Cool (0) Movement Walking (180) Ox1 Location -4/Armory Parts ------- > --- POWER (2) -------- Assembled Flux Generator > --- PROPULSION (4) --- Assembled Alloy Leg Assembled Alloy Leg > --- UTILITY (11) ----- Assembled Nanovents Assembled Biocell Array Vampiric Brace Plating Advanced Force Field Improved Hacking Suite Advanced Hacking Suite Advanced Hacking Suite Tech Extrapolator GOLEM Unit > --- WEAPON (2) ------- Assembled Focal Cannon Assembled Focal Cannon > --- INVENTORY (5) ---- Cloak of Protection Plasma Cutter CR-A16's Pointy Stick Peak State ------------ > --- POWER ------------ Quantum Reactor Quantum Reactor > --- PROPULSION ------- Centrium Heavy Treads Centrium Heavy Treads > --- UTILITY ---------- Advanced Cooling System Assembled Nanovents Huge Storage Unit Assembled Biocell Array Experimental Terrain Scanner Surveybot 24 Chip Centrium Medium Armor Plating Improved Hacking Suite Tech Extrapolator GOLEM Unit > --- WEAPON ----------- Assembled Focal Cannon Assembled Focal Cannon > --- INVENTORY -------- Armored Medium Treads Armored Medium Treads Zionite Composite Leg I Zionite Biocell Zionite Biocell YI-UF0's Bottomless Matter Pit Active Sensor Suite Cloak of Protection Zionite Weapon Casing Medium Regenerative Plating Vampiric Brace Plating Graphene Brace Advanced Force Field Improved Hacking Suite Advanced Hacking Suite GOLEM Unit Neutron Cannon Long-range Missile Launcher Plasma Cutter CR-A16's Pointy Stick [Rating: 165] Favorites ----------- Power Improved Ion Engine Engine Improved Ion Engine Power Core Neutrino Core Reactor Quantum Reactor Propulsion Improved Medium Treads Treads Improved Medium Treads Leg Assembled Alloy Leg Wheel Subdweller Monowheel Hover Unit Zionite Glidesys I Utility Tech Extrapolator Device GOLEM Unit Storage High-capacity Storage Unit Processor Tech Extrapolator Hackware Improved Hacking Suite Protection Assembled Alloy Armor Weapon Subdweller Beam Cannon Energy Gun Force Rifle Energy Cannon Subdweller Beam Cannon Ballistic Gun Assault Rifle Launcher Grenade Launcher Special Weapon Plasma Cutter Slashing Weapon Mining Claw Build | -11 -10 -10 -10 -9 -9 -6 -6 -6 -6 -6 -5 -5 -5 -5 -5 -5 -4 -4 ------- Run | Yrd Mat Min Sub Rec Scr Fac Low Low Zio Dee Pro Fac Ext Cet Arc Hub Fac Arm Slots Evolved 12 | . . . . . . 8 . . . . . 2 . . . . 2 . Power 1 | . . . . . . 1 . . . . . . . . . . . . Propulsion 2 | . . . . . . 2 . . . . . . . . . . . . Utility 9 | . . . . . . 5 . . . . . 2 . . . . 2 . Weapon . | . . . . . . . . . . . . . . . . . . . Parts Attached 188 | . 8 3 27 2 7 29 5 9 3 35 3 2 2 19 11 1 19 3 Power 13 | . . . 2 1 . 2 1 1 . 2 . . . 4 . . . . Engine 7 | . . . 2 1 . 2 1 1 . . . . . . . . . . Core 1 | . . . . . . . . . . 1 . . . . . . . . Reactor 5 | . . . . . . . . . . 1 . . . 4 . . . . Propulsion 36 | . 3 . 8 1 . 8 . . . 6 . . 2 2 2 . 4 . Treads 17 | . 2 . 5 1 . 4 . . . 1 . . . 2 1 . 1 . Leg 16 | . 1 . 2 . . 4 . . . 3 . . 2 . 1 . 3 . Wheel 1 | . . . 1 . . . . . . . . . . . . . . . Hover 2 | . . . . . . . . . . 2 . . . . . . . . Flight . | . . . . . . . . . . . . . . . . . . . Utility 89 | . 3 1 10 . 3 11 4 3 1 15 3 2 . 8 9 1 13 2 Device 47 | . 2 1 4 . 1 6 2 2 . 8 3 1 . 3 7 . 6 1 Storage 10 | . 1 . 2 . 1 2 . . . 2 . . . 1 . . 1 . Processor 4 | . . . . . 1 . 1 . 1 . . . . . . . 1 . Hackware 8 | . . . . . . 1 . . . . . 1 . . 1 1 4 . Protection 20 | . . . 4 . . 2 1 1 . 5 . . . 4 1 . 1 1 Artifact . | . . . . . . . . . . . . . . . . . . . Weapon 50 | . 2 2 7 . 4 8 . 5 2 12 . . . 5 . . 2 1 Energy Gun 17 | . 1 . . . 1 4 . 2 1 6 . . . 2 . . . . Energy Cannon 16 | . . . 4 . 3 4 . 1 . 3 . . . . . . 1 . Ballistic Gun 5 | . 1 1 2 . . . . . . . . . . 1 . . . . Ballistic Cannon . | . . . . . . . . . . . . . . . . . . . Launcher 7 | . . . 1 . . . . 2 . 3 . . . . . . 1 . Special Weapon 4 | . . . . . . . . . 1 . . . . 2 . . . 1 Impact Weapon . | . . . . . . . . . . . . . . . . . . . Slashing Weapon 1 | . . 1 . . . . . . . . . . . . . . . . Piercing Weapon . | . . . . . . . . . . . . . . . . . . . Special Melee Weapon . | . . . . . . . . . . . . . . . . . . . Unidentified Prototypes 34 | . . . 1 . . 5 . 1 . 14 1 . . 8 2 . 2 . Corrupted Parts 4 | . . . . . . . . . . . . . . 4 . . . . System Corruption 30 | . . . . . . . . . . . . . . 30 . . . . Parts Lost 40 | . 1 . 7 1 . . . . . 7 . . 1 . . . 22 1 Power 5 | . . . 2 . . . . . . 1 . . . . . . 2 . Propulsion 12 | . . . 3 1 . . . . . 2 . . . . . . 6 . Utility 16 | . . . 2 . . . . . . 2 . . 1 . . . 10 1 Weapon 7 | . 1 . . . . . . . . 2 . . . . . . 4 . Highest Loss Streak 15 | . 1 . 3 1 . . . . . 3 . . 1 . . . 15 1 To Critical Strikes 1 | . . . . . . . . . . . . . . . . . 1 . Average Slot Usage (%) 89 | . 93 100 91 84 95 87 93 90 93 84 86 88 88 85 80 82 82 49 Engine 9 | . 14 14 13 14 14 12 13 13 13 2 . . . . . . . . Reactor 2 | . . . . . . . . . . 4 6 5 5 6 11 11 9 3 Treads 20 | . 15 28 23 27 28 14 26 26 26 17 . . . 3 11 11 9 . Leg 3 | . 12 . 2 . . 8 . . . 6 26 23 23 15 . . 1 7 Device 7 | . 8 14 6 . 2 19 16 13 11 8 13 19 17 12 11 11 17 7 Storage 10 | . 14 14 9 14 14 6 6 6 6 8 13 11 11 11 11 11 9 1 Processor 5 | . . . . . 7 6 10 13 14 10 6 5 5 5 5 5 6 5 Protection 4 | . . . 5 . . 4 4 3 6 8 6 5 5 15 15 11 7 2 Energy Gun 3 | . 16 14 . . . . 13 12 12 7 . . . 2 . . . . Energy Cannon 15 | . . . 23 28 27 11 . . . 4 13 11 11 6 11 11 9 2 Peak Build Rating 165 | . 11 14 31 32 22 82 83 86 80 127 127 143 143 150 149 147 165 133 Average Rating 60 | . 8 12 15 29 18 62 79 80 77 95 124 139 138 142 145 145 155 86 On Entrance 75 | 6 6 11 14 31 15 22 82 77 77 80 125 125 138 143 146 147 145 41 Naked Turns . | . . . . . . . . . . . . . . . . . . . Heaviest Build 223 | 12 29 29 221 223 223 94 88 90 87 117 132 119 119 134 134 134 177 106 Greatest Support 160 | 20 40 40 40 40 40 120 120 120 120 120 108 108 108 160 160 160 160 60 Greatest Overweight (x) 44 | . . . 5 11 5 1 . . . 3 1 1 1 1 44 . 2 1 Average Overweight (x) 1 | . . . . 5 1 . . . . . 1 1 1 . 9 . . . Largest Inventory Capacity 35 | . 15 15 35 35 35 20 20 20 20 20 20 20 20 20 20 20 25 5 Average Capacity 20 | . 10 15 14 35 17 16 20 20 20 19 20 20 20 20 20 20 23 5 Most Carried 31 | . 10 15 29 31 17 20 20 20 20 20 20 20 20 20 20 20 25 5 Average Carried 17 | . 7 13 11 28 14 16 19 19 19 18 19 19 19 19 19 20 22 3 Final Capacity 35 | 8 15 15 35 35 15 20 20 20 20 20 20 20 20 20 20 20 5 5 Final Carried 29 | 6 10 15 29 17 15 20 20 20 20 20 20 19 20 20 20 20 5 3 Class Distribution -------------------- 27% | Scavenger-Mutant 26% | Mutant 17% | Hauler-Mutant 11% | Golem 9% | Scavenger-Golem 4% | Subdweller-Mutant Dominant Class ---------------- Mutant | -10/Materials Mutant | -10/Mines Mutant | -10/Subcaves Hauler-Mutant | -9/Recycling Scavenger-Mutant | -9/Scraptown Scavenger-Mutant | -6/Factory Mutant | -6/Lower Caves Mutant | -6/Lower Caves Mutant | -6/Zion Scavenger-Mutant | -6/Deep Caves Golem | -5/Proximity Caves Golem | -5/Factory Golem | -5/Extension Scavenger-Golem | -5/Cetus Scavenger-Golem | -5/Archives Scavenger-Golem | -5/Hub_04(d) Scavenger-Golem | -4/Factory Hacker-Mutant | -4/Armory Resources | -11 -10 -10 -10 -9 -9 -6 -6 -6 -6 -6 -5 -5 -5 -5 -5 -5 -4 -4 ----------- Run | Yrd Mat Min Sub Rec Scr Fac Low Low Zio Dee Pro Fac Ext Cet Arc Hub Fac Arm Matter Collected 9613 | 148 196 90 386 20 60 1153 1242 4088 123 1306 30 20 35 201 224 16 206 69 Remotely 839 | . . . . . . 839 . . . . . . . . . . . . Salvage Created 8336 | . 424 287 846 325 . 918 145 410 . 861 300 70 908 239 504 350 1596 153 Parts 396 | . 22 21 58 9 . 22 7 17 . 30 16 2 47 22 31 18 71 3 Haulers Intercepted 3 | . 1 . . . . 1 . . . . 1 . . . . . . . Recyclers Shooed 8 | . 1 . . 2 . 3 . . . . . . . . . . 2 . Parts Field Recycled . | . . . . . . . . . . . . . . . . . . . Retrieved Matter . | . . . . . . . . . . . . . . . . . . . Parts Self-Destructed 101 | . . . 21 . . . 16 37 . . 27 . . . . . . . Prevented . | . . . . . . . . . . . . . . . . . . . Kills | -11 -10 -10 -10 -9 -9 -6 -6 -6 -6 -6 -5 -5 -5 -5 -5 -5 -4 -4 ------- Run | Yrd Mat Min Sub Rec Scr Fac Low Low Zio Dee Pro Fac Ext Cet Arc Hub Fac Arm Combat Hostiles Destroyed 147 | . 6 8 24 2 . 9 2 5 . 42 4 1 11 2 1 5 23 2 Guns 25 | . 6 8 4 . . . 2 . . 5 . . . . . . . . Cannons 75 | . . . 17 2 . 7 . . . 1 4 1 11 2 1 5 22 2 AOE 40 | . . . 1 . . . . 5 . 33 . . . . . . 1 . Classes Destroyed 26 | . 3 2 4 . . 3 1 3 . 4 1 . 1 . . 1 3 . Worker 3 | . . . . . . . . . . . . . . . . 2 1 . Builder 6 | . . 1 . . . 2 . . . . . . 2 . . . 1 . Hauler 3 | . 1 . . . . 1 . . . . 1 . . . . . . . Recycler 5 | . 1 . . 3 . 1 . . . . . . . . . . . . Operator 10 | . . . . . . . . . . . . . 1 . 9 . . . Turret 2 | . . . 2 . . . . . . . . . . . . . . . Watcher 3 | . . . . . . 1 . . . . . . 2 . . . . . Swarmer 15 | . . 6 7 . . . . . . . 2 . . . . . . . Grunt 34 | . 6 2 2 . . 6 . 3 . . 1 1 1 . . 3 9 . Brawler 4 | . . . . . . 1 . . . . . . 1 . . . 1 1 Duelist 3 | . . . . . . . 1 . . . . . 1 . . . . 1 Protector 1 | . . . . . . . . 1 . . . . . . . . . . Sentry 13 | . . . 1 2 . 1 1 1 . . . . 3 . 1 1 2 . Specialist 2 | . . . . . . . . . . . . . . . . . 2 . Hunter 9 | . . . . . . 1 . . . . . . 4 . . 1 3 . Programmer 4 | . . . . . . . . . . . . . . . . . 4 . Heavy 2 | . . . . . . . . . . . . . . . . . 2 . Behemoth 2 | . . . . . . . . . . . 1 . 1 . . . . . Cetus Guard 2 | . . . . . . . . . . . . . . 2 . . . . Enhanced Grunt 1 | . . . . . . . . . . . . . . . 1 . . . Cobbler 1 | . . . 1 . . . . . . . . . . . . . . . Subdweller 14 | . . . 14 . . . . . . . . . . . . . . . Z-Light 5 | . . . . . . . . . . 5 . . . . . . . . Samaritan 2 | . . . . . . . . 2 . . . . . . . . . . Tinkerer 1 | . . . . . . . . 1 . . . . . . . . . . Assembler 1 | . . . . . . . . . . 1 . . . . . . . . Assembled 33 | . . . . . . . . . . 33 . . . . . . . . Golem 4 | . . . . . . . . . . 4 . . . . . . . . Thug 1 | . . . . . . . . . . . . . 1 . . . . . Best Kill Streak 33 | . 3 6 4 3 . 3 2 4 . 33 2 1 3 2 2 3 5 1 Combat Bots Only 32 | . 2 6 4 2 . 3 2 4 . 32 2 1 2 2 1 2 5 1 Max Kills in Single Turn 14 | . 1 1 1 1 . 1 1 4 . 14 1 1 2 1 1 2 1 1 Gunslinging . | . . . . . . . . . . . . . . . . . . . Exploded 14 | . . . 1 . . . . 4 . 14 . . . . . . 1 . Melee . | . . . . . . . . . . . . . . . . . . . Uniques/NPCs Destroyed 3 | . . 1 . . . . . . . 1 . . . 1 . . . . YI-UF0 (-10/Mines) Z-Imprinter (-6/Deep Caves) A7 (-5/Cetus) Combat | -11 -10 -10 -10 -9 -9 -6 -6 -6 -6 -6 -5 -5 -5 -5 -5 -5 -4 -4 -------- Run | Yrd Mat Min Sub Rec Scr Fac Low Low Zio Dee Pro Fac Ext Cet Arc Hub Fac Arm Hostile Shots Fired 1054 | . 36 26 118 8 . 52 10 21 . 86 27 8 52 23 6 13 530 38 Missed 335 | . 11 8 38 1 . 29 5 8 . 21 8 2 12 6 2 4 168 12 Damage Taken 13954 | . 334 185 1553 108 . 399 80 237 . 2154 364 95 597 461 91 222 6442 632 Core 1631 | . 40 45 116 . . 66 25 19 . 240 26 17 48 22 . . 906 61 Absorbed by Shields 645 | . . . . . . . . . . . . . 258 . . . 134 253 Reduced by Siege Mode 192 | . . . . . . . . . . . . . . . . . 192 . Redirected to Shielding 11 | . . . . . . . . . . 11 . . . . . . . . Ignored by Resistances 739 | . . . . . . . . . . 50 77 18 176 88 19 43 268 . Regen/Repaired (Parts) 22 | . . . . . . . . . . . . . . . 22 . . . Core Remaining (%) 61 | 100 . . . . 19 . . . . . 34 . . . . 91 . . Volleys Fired 550 | . 35 19 94 8 . 47 4 23 1 58 29 4 42 24 39 16 93 14 Largest 2 | . 2 2 2 2 . 2 2 2 1 2 2 2 2 2 2 2 2 2 Hottest 160 | . 90 85 160 160 . 160 160 160 80 160 50 50 50 105 50 50 90 50 Shots Fired 978 | . 69 38 174 16 . 91 8 39 1 80 58 5 78 36 77 32 157 19 Gun 240 | . 69 38 52 . . . 8 32 1 36 . . . 4 . . . . Cannon 705 | . . . 116 16 . 91 . 1 . 30 58 5 78 30 77 32 153 18 Launcher 30 | . . . 6 . . . . 6 . 14 . . . . . . 4 . Special 3 | . . . . . . . . . . . . . . 2 . . . 1 Kinetic 81 | . 25 19 37 . . . . . . . . . . . . . . . Thermal 837 | . 35 19 131 16 . 91 8 33 1 47 58 5 78 34 77 32 153 19 Explosive 21 | . . . 6 . . . . 6 . 5 . . . . . . 4 . Electromagnetic 37 | . 9 . . . . . . . . 28 . . . . . . . . Robot Hit Streak 27 | . 13 15 18 10 . 14 5 6 . 5 7 1 10 11 8 5 27 6 Robot Miss Streak 6 | . 3 3 6 2 . 2 1 3 . 3 3 3 3 2 5 2 2 1 Penetration Max . | . . . . . . . . . . . . . . . . . . . Secondary Targets 3 | . 1 . 1 . . . . . . 1 . . . . . . . . Max Gunslinging Chain 1 | . 1 . 1 . . . . . . 1 . . . . . . . . Shots Hit Robots 593 | . 46 34 99 10 . 60 5 22 . 40 19 1 48 28 44 12 112 13 Core Hits 318 | . 15 12 34 6 . 22 3 27 . 76 7 1 22 9 17 11 51 5 Critical Kills 6 | . . . 2 . . 2 . 1 . 1 . . . . . . . . Critical Parts Destroyed 3 | . . . . . . . . 3 . . . . . . . . . . Critical Strikes 11 | . 1 . 2 . . 2 . 4 . 2 . . . . . . . . Burn 1 | . 1 . . . . . . . . . . . . . . . . . Meltdown 4 | . . . 2 . . 2 . . . . . . . . . . . . Destroy 5 | . . . . . . . . 4 . 1 . . . . . . . . Corrupt 1 | . . . . . . . . . . 1 . . . . . . . . Melee Attacks 7 | . . 7 . . . . . . . . . . . . . . . . Impact . | . . . . . . . . . . . . . . . . . . . Slashing 7 | . . 7 . . . . . . . . . . . . . . . . Piercing . | . . . . . . . . . . . . . . . . . . . Sneak Attacks 7 | . . 7 . . . . . . . . . . . . . . . . Combat Hostiles . | . . . . . . . . . . . . . . . . . . . Follow-up Attacks . | . . . . . . . . . . . . . . . . . . . Damage Inflicted 25335 | . 627 715 2519 285 . 1803 121 1320 . 4072 965 47 2479 1128 2257 764 5687 546 Guns 2694 | . 627 383 526 . . . 121 536 . 458 . . . 43 . . . . Cannons 17357 | . . . 1752 278 . 1765 . . . 545 965 47 2479 1085 2257 597 5041 546 Explosions 4904 | . . . 241 . . . . 784 . 3069 . . . . . 167 643 . Melee 332 | . . 332 . . . . . . . . . . . . . . . . Ramming 48 | . . . . 7 . 38 . . . . . . . . . . 3 . Kinetic 764 | . 249 164 351 . . . . . . . . . . . . . . . Thermal 19133 | . 339 219 1927 278 . 1765 121 536 . 794 965 47 2479 1128 2257 597 5135 546 Explosive 4116 | . . . 241 . . . . 784 . 2542 . . . . . . 549 . Electromagnetic 942 | . 39 . . . . . . . . 736 . . . . . 167 . . Impact . | . . . . . . . . . . . . . . . . . . . Slashing 332 | . . 332 . . . . . . . . . . . . . . . . Piercing . | . . . . . . . . . . . . . . . . . . . Highest Corruption 31 | . . . . . . . . . . . . . 1 31 31 6 9 10 Average Corruption 6 | . . . . . . . . . . . . . 1 16 6 4 3 9 Corruption Purged 27 | . . . . . . . . . . . . . . . 27 . . . Corruption Blocked . | . . . . . . . . . . . . . . . . . . . Effects 140 | . . . . . . . . . . . . . 5 22 79 9 8 17 Message Errors 41 | . . . . . . . . . . . . . . 3 27 2 2 7 Matter Fused 30 | . . . . . . . . . . . . . 2 4 16 2 1 5 Heat Flow Errors 16 | . . . . . . . . . . . . . . 5 8 1 1 1 Energy Discharges 13 | . . . . . . . . . . . . . . 2 9 . 1 1 Parts Fused 2 | . . . . . . . . . . . . . . 1 1 . . . Data Loss (minor) 16 | . . . . . . . . . . . . . . 4 7 3 1 1 Data Loss (major) 7 | . . . . . . . . . . . . . . 2 3 1 1 . Misfires 5 | . . . . . . . . . . . . . 1 . 3 . 1 . Alerts 4 | . . . . . . . . . . . . . 1 1 1 . . 1 Misdirections 1 | . . . . . . . . . . . . . . . . . . 1 Weapon Failures 5 | . . . . . . . . . . . . . 1 . 4 . . . Overload Shots . | . . . . . . . . . . . . . . . . . . . Overflow Damage 1246 | . . 27 11 . . 10 . 10 . 176 86 . 250 . 415 33 217 11 Projectiles 1032 | . . . 11 . . 10 . . . 18 86 . 250 . 415 33 198 11 Explosions 187 | . . . . . . . . 10 . 158 . . . . . . 19 . Melee 27 | . . 27 . . . . . . . . . . . . . . . . Knockbacks . | . . . . . . . . . . . . . . . . . . . Impact . | . . . . . . . . . . . . . . . . . . . Kinetic . | . . . . . . . . . . . . . . . . . . . Secondary . | . . . . . . . . . . . . . . . . . . . Self-Inflicted Damage 83 | . . . . . . . . . . . . . . . . 82 1 . Shots 1 | . . . . . . . . . . . . . . . . 1 . . Rammed 6 | . . . . 2 . 3 . . . . . . . . . . 1 . Targets Rammed 7 | . . . . 2 . 4 . . . . . . . . . . 1 . Kicked 1 | . . . . . . 1 . . . . . . . . . . . . Crushed . | . . . . . . . . . . . . . . . . . . . Highest Temperature 480 | . 324 16 480 376 . 225 9 264 6 438 . . . 200 228 85 80 83 Average Temperature 98 | . 126 8 93 154 . 52 6 70 4 96 . . . 79 83 46 25 61 Received Heat Transfer 2507 | . 189 81 483 27 . 105 24 99 . 393 12 9 60 63 . 45 880 37 Effects 2 | . . . 1 . . . . . . 1 . . . . . . . . Shutdowns 1 | . . . . . . . . . . 1 . . . . . . . . Damage (major) 1 | . . . 1 . . . . . . . . . . . . . . . Siege Activations 6 | . . . . . . . . . . . . . . . . . 6 . Total Turns 143 | . . . . . . . . . . . . . . . . . 143 . Longest Duration 69 | . . . . . . . . . . . . . . . . . 69 . Robots Corrupted 3 | . . . . . . . . . . 3 . . . . . . . . Combat Hostiles 3 | . . . . . . . . . . 3 . . . . . . . . Parts Fried 6 | . . . . . . . . . . 6 . . . . . . . . Impact Corruptions . | . . . . . . . . . . . . . . . . . . . Robots Melted 5 | . . . 2 . . 3 . . . . . . . . . . . . Combat Hostiles 4 | . . . 2 . . 2 . . . . . . . . . . . . Parts Melted 40 | . . 1 10 . . 14 1 4 . 1 . . 3 1 1 . 3 1 Heat Transferred 15911 | . 962 518 2812 370 . 2331 185 754 . 844 487 25 1349 699 1300 325 2625 325 Parts Sabotaged . | . . . . . . . . . . . . . . . . . . . Parts Stolen . | . . . . . . . . . . . . . . . . . . . Parts Stripped . | . . . . . . . . . . . . . . . . . . . Power Chain Reactions 2 | . . . . . . . . . . 1 . . . . . . 1 . Alert | -11 -10 -10 -10 -9 -9 -6 -6 -6 -6 -6 -5 -5 -5 -5 -5 -5 -4 -4 ------- Run | Yrd Mat Min Sub Rec Scr Fac Low Low Zio Dee Pro Fac Ext Cet Arc Hub Fac Arm Peak Influence 1461 | . 187 160 . 120 . 316 . . . . . 219 726 631 417 772 1461 656 Initial 641 | . . 5 . 90 . . . . . . . . 107 396 173 . 378 641 Average 169 | . 113 58 . 16 . 165 . . . . . 51 224 464 94 275 686 607 Maximum Alert Level 4 | . . . . . . 1 . . . . . 1 3 2 2 3 4 2 Low Security (%) 72 | . 100 100 . 100 . 69 . . . . . 93 64 . 71 67 . . Level 1 10 | . . . . . . 30 . . . . . 6 11 7 23 2 24 . Level 2 14 | . . . . . . . . . . . . . 22 92 4 10 45 100 Level 3 2 | . . . . . . . . . . . . . 1 . . 19 19 . Level 4 . | . . . . . . . . . . . . . . . . . 10 . Level 5 . | . . . . . . . . . . . . . . . . . . . High Security . | . . . . . . . . . . . . . . . . . . . Max Security . | . . . . . . . . . . . . . . . . . . . Squads Dispatched 32 | . 1 . . . . 8 . 1 . . . 3 4 . . 5 8 2 Investigation 7 | . . . . . . 2 . . . . . 2 . . . 2 1 . Extermination 3 | . . . . . . 1 . . . . . . . . . . 2 . Reinforcement 14 | . 1 . . . . 5 . . . . . 1 3 . . . 4 . Assault 6 | . . . . . . . . 1 . . . . 1 . . 1 1 2 Garrison 2 | . . . . . . . . . . . . . . . . 2 . . Intercept . | . . . . . . . . . . . . . . . . . . . Searches Triggered . | . . . . . . . . . . . . . . . . . . . Construction Impeded 1 | . . . . . . . . . . . . . . . . . 1 . Haulers Reinforced 2 | . . . . . . 2 . . . . . . . . . . . . Active Scanning Responses . | . . . . . . . . . . . . . . . . . . . Cargo Convoy Interrupts . | . . . . . . . . . . . . . . . . . . . Stealth | -11 -10 -10 -10 -9 -9 -6 -6 -6 -6 -6 -5 -5 -5 -5 -5 -5 -4 -4 --------- Run | Yrd Mat Min Sub Rec Scr Fac Low Low Zio Dee Pro Fac Ext Cet Arc Hub Fac Arm Distress Signals 8 | . 1 . . . . . . . . . . . . 2 . . 5 . Communications Jammed . | . . . . . . . . . . . . . . . . . . . Distress Signals . | . . . . . . . . . . . . . . . . . . . Times Spotted 311 | . 12 7 33 2 . 16 4 21 . 58 13 9 36 10 19 11 54 6 Peak Tracking Total 37 | . 3 2 6 2 . 3 3 6 . 37 5 4 8 5 2 3 11 4 Tactical Retreats 12 | . . . 2 . . . . 2 . 1 1 1 1 . . 2 1 1 Traps | -11 -10 -10 -10 -9 -9 -6 -6 -6 -6 -6 -5 -5 -5 -5 -5 -5 -4 -4 ------- Run | Yrd Mat Min Sub Rec Scr Fac Low Low Zio Dee Pro Fac Ext Cet Arc Hub Fac Arm Traps Triggered 6 | . . . . . . 1 . . . . . . 4 . . 1 . . Indirectly . | . . . . . . . . . . . . . . . . . . . Trap Hack Attempts . | . . . . . . . . . . . . . . . . . . . Triggered . | . . . . . . . . . . . . . . . . . . . Disarmed . | . . . . . . . . . . . . . . . . . . . Reprogrammed . | . . . . . . . . . . . . . . . . . . . Reused . | . . . . . . . . . . . . . . . . . . . Traps Extracted . | . . . . . . . . . . . . . . . . . . . Installed . | . . . . . . . . . . . . . . . . . . . Triggered 2 | . . . . . . . . 2 . . . . . . . . . . Machines | -11 -10 -10 -10 -9 -9 -6 -6 -6 -6 -6 -5 -5 -5 -5 -5 -5 -4 -4 ---------- Run | Yrd Mat Min Sub Rec Scr Fac Low Low Zio Dee Pro Fac Ext Cet Arc Hub Fac Arm Machines Disabled 47 | . 1 1 3 . . 1 . 1 3 3 . 4 7 1 1 6 13 2 Max in Single Turn 3 | . 1 1 2 . . 1 . 1 1 1 . . 1 1 . 3 1 1 Garrison Access 2 | . . . . . . . . . . . . 1 . . . 1 . . Network Hub 1 | . . . . . . . . . . . . . . . . 1 . . Machines Repaired . | . . . . . . . . . . . . . . . . . . . Machines Dismantled 4 | . . . . . . . . . 3 . . . . . . . . 1 Machines Sabotaged . | . . . . . . . . . . . . . . . . . . . Overloaded Fab Kills . | . . . . . . . . . . . . . . . . . . . Hacking | -11 -10 -10 -10 -9 -9 -6 -6 -6 -6 -6 -5 -5 -5 -5 -5 -5 -4 -4 --------- Run | Yrd Mat Min Sub Rec Scr Fac Low Low Zio Dee Pro Fac Ext Cet Arc Hub Fac Arm Machines Accessed 48 | . . . 3 13 4 3 . 1 . . . 5 13 1 . 2 3 . Terminals 24 | . . . . 6 . . . . . . . 2 12 1 . 1 2 . Fabricators 2 | . . . . . . 2 . . . . . . . . . . . . Repair Stations 1 | . . . . . . . . . . . . . 1 . . . . . Recycling Units 9 | . . . . 5 . 1 . . . . . 2 . . . . 1 . Scanalyzers . | . . . . . . . . . . . . . . . . . . . Garrison Access 2 | . . . . . . . . . . . . 1 . . . 1 . . Total Hacks 117 | . . . 6 30 21 6 . 1 . . . 8 29 1 . 6 9 . Successful 75 | . . . 6 21 21 5 . 1 . . . 6 11 . . . 4 . Failed 42 | . . . . 9 . 1 . . . . . 2 18 1 . 6 5 . Catastrophic 10 | . . . . 1 . . . . . . . 1 5 1 . 1 1 . Database Lockouts . | . . . . . . . . . . . . . . . . . . . Manual 41 | . . . . 19 . 2 . . . . . 6 6 1 . . 7 . Terminals 61 | . . . . 18 . . . . . . . 4 27 1 . 3 8 . Fabricators 5 | . . . . . . 5 . . . . . . . . . . . . Repair Stations 2 | . . . . . . . . . . . . . 2 . . . . . Recycling Units 13 | . . . . 8 . 1 . . . . . 3 . . . . 1 . Scanalyzers . | . . . . . . . . . . . . . . . . . . . Garrison Access 4 | . . . . . . . . . . . . 1 . . . 3 . . Terminal Hacks 48 | . . . 6 8 21 . . 1 . . . 2 8 . . . 2 . Record 29 | . . . 4 4 21 . . . . . . . . . . . . . Robot Analysis 1 | . . . . . . . . . . . . 1 . . . . . . Open Door 7 | . . . 1 . . . . 1 . . . . 5 . . . . . Branch Access Points 3 | . . . . 1 . . . . . . . 1 . . . . 1 . Alert Level 3 | . . . . 1 . . . . . . . . 1 . . . 1 . Unreport Threat 3 | . . . . 1 . . . . . . . . 2 . . . . . Zone Layout 1 | . . . . 1 . . . . . . . . . . . . . . Release Object 1 | . . . 1 . . . . . . . . . . . . . . . Fabricator Hacks 3 | . . . . . . 3 . . . . . . . . . . . . Load Schematic 2 | . . . . . . 2 . . . . . . . . . . . . Build 1 | . . . . . . 1 . . . . . . . . . . . . Repair Station Hacks 1 | . . . . . . . . . . . . . 1 . . . . . Scan Component 1 | . . . . . . . . . . . . . 1 . . . . . Recycling Unit Hacks 2 | . . . . 2 . . . . . . . . . . . . . . Report Inventory 1 | . . . . 1 . . . . . . . . . . . . . . Retrieve Components 1 | . . . . 1 . . . . . . . . . . . . . . Scanalyzer . | . . . . . . . . . . . . . . . . . . . Garrison Access Hacks 1 | . . . . . . . . . . . . 1 . . . . . . Seal Access 1 | . . . . . . . . . . . . 1 . . . . . . Unauthorized Hacks 20 | . . . . 11 . 2 . . . . . 3 2 . . . 2 . Terminals 10 | . . . . 6 . . . . . . . 1 2 . . . 1 . Botnet 7 | . . . . 3 . . . . . . . 1 2 . . . 1 . Skim 3 | . . . . 3 . . . . . . . . . . . . . . Fabricators 1 | . . . . . . 1 . . . . . . . . . . . . Recompile 1 | . . . . . . 1 . . . . . . . . . . . . Repair Stations 4 | . . . . . . 1 . . . . . 2 . . . . 1 . Recycling Units 5 | . . . . 5 . . . . . . . . . . . . . . Tunnel 5 | . . . . 5 . . . . . . . . . . . . . . Fedlink 1 | . . . . . . . . . . . . 1 . . . . . . Scrapoids 3 | . . . . . . 1 . . . . . 1 . . . . 1 . Scanalyzers . | . . . . . . . . . . . . . . . . . . . Garrison Access . | . . . . . . . . . . . . . . . . . . . Data Cores Recovered . | . . . . . . . . . . . . . . . . . . . Used . | . . . . . . . . . . . . . . . . . . . Hacking Detections 26 | . . . . 7 . 1 . . . . . 3 10 1 . 2 2 . Full Trace Events 1 | . . . . . . . . . . . . . . . . 1 . . Feedback Events . | . . . . . . . . . . . . . . . . . . . Feedback Blocked . | . . . . . . . . . . . . . . . . . . . Robot Schematics Acquired 3 | . . . . . . . . . 3 . . . . . . . . . Robots Built . | . . . . . . . . . . . . . . . . . . . Authchips . | . . . . . . . . . . . . . . . . . . . Time . | . . . . . . . . . . . . . . . . . . . Total Robot Build Rating . | . . . . . . . . . . . . . . . . . . . Part Schematics Acquired 60 | . . . . . 16 6 . 3 19 2 5 . 3 2 1 . 3 . Parts Built 1 | . . . . . . 1 . . . . . . . . . . . . Authchips 1 | . . . . . . 1 . . . . . . . . . . . . Time 56 | . . . . . . 56 . . . . . . . . . . . . Total Part Build Rating 6 | . . . . . . 6 . . . . . . . . . . . . Parts Repaired . | . . . . . . . . . . . . . . . . . . . Time . | . . . . . . . . . . . . . . . . . . . Parts Recycled . | . . . . . . . . . . . . . . . . . . . Recycled Matter . | . . . . . . . . . . . . . . . . . . . Retrieved Matter . | . . . . . . . . . . . . . . . . . . . Retrieved Components 4 | . . . . 4 . . . . . . . . . . . . . . Parts Scanalyzed . | . . . . . . . . . . . . . . . . . . . Part Schematics Acquired . | . . . . . . . . . . . . . . . . . . . Parts Damaged . | . . . . . . . . . . . . . . . . . . . Bothacking | -11 -10 -10 -10 -9 -9 -6 -6 -6 -6 -6 -5 -5 -5 -5 -5 -5 -4 -4 ------------ Run | Yrd Mat Min Sub Rec Scr Fac Low Low Zio Dee Pro Fac Ext Cet Arc Hub Fac Arm Used RIF Installer . | . . . . . . . . . . . . . . . . . . . Robots Hacked . | . . . . . . . . . . . . . . . . . . . Non-combat . | . . . . . . . . . . . . . . . . . . . Combat . | . . . . . . . . . . . . . . . . . . . Robot Hacks Applied . | . . . . . . . . . . . . . . . . . . . Relay Couplers Released 3 | . . . . . . . . . . . . . . . . 3 . . Machine Destruction 3 | . . . . . . . . . . . . . . . . 3 . . Fabnet Peak Effective % . | . . . . . . . . . . . . . . . . . . . Robots Rewired 4 | . . . . . . . . 1 . . . . 3 . . . . . Allies Hacked 1 | . . . . . . 1 . . . . . . . . . . . . Hacks Repelled . | . . . . . . . . . . . . . . . . . . . Allies | -11 -10 -10 -10 -9 -9 -6 -6 -6 -6 -6 -5 -5 -5 -5 -5 -5 -4 -4 -------- Run | Yrd Mat Min Sub Rec Scr Fac Low Low Zio Dee Pro Fac Ext Cet Arc Hub Fac Arm Total Allies 46 | . . 3 . . 1 5 5 2 . . . 5 15 5 . . 5 . Largest Group 9 | . . 3 3 . 1 5 8 7 4 4 1 5 9 7 5 3 5 . Highest-Rated Group 643 | . . 40 40 . 64 143 322 273 232 232 99 235 377 643 401 209 242 . Highest-Rated Ally 159 | . . 16 16 . 64 64 50 99 99 99 99 96 159 159 96 96 96 . Total Orders 2 | . . . . . . . . . . . . . . . . . 2 . STAY 1 | . . . . . . . . . . . . . . . . . 1 . FOLLOW 1 | . . . . . . . . . . . . . . . . . 1 . Ally Attacks 686 | . . . 49 . . 37 38 104 . 77 12 26 156 51 21 13 102 . Total Damage 19690 | . . . 605 . . 660 658 2225 . 3936 966 915 3446 1719 753 504 3303 . Kills 127 | . . . 5 . . 4 5 17 . 25 7 6 23 9 3 5 18 . Allies Corrupted 4 | . . . . . . . . . . . . . 3 1 . . . . Allies Melted . | . . . . . . . . . . . . . . . . . . . Intel | -11 -10 -10 -10 -9 -9 -6 -6 -6 -6 -6 -5 -5 -5 -5 -5 -5 -4 -4 ------- Run | Yrd Mat Min Sub Rec Scr Fac Low Low Zio Dee Pro Fac Ext Cet Arc Hub Fac Arm Robot Analysis Total 1 | . . . . . . . . . . . . 1 . . . . . . Derelict Logs Recovered 15 | . . 3 1 . 5 . 2 1 2 . 1 . . . . . . . Drone Launches . | . . . . . . . . . . . . . . . . . . . Drone Recoveries . | . . . . . . . . . . . . . . . . . . . Exploration | -11 -10 -10 -10 -9 -9 -6 -6 -6 -6 -6 -5 -5 -5 -5 -5 -5 -4 -4 ------------- Run | Yrd Mat Min Sub Rec Scr Fac Low Low Zio Dee Pro Fac Ext Cet Arc Hub Fac Arm Turns Passed 41291 | . 416 1178 6453 4657 9531 929 717 2080 1832 5499 812 375 1516 564 2758 249 1184 541 Spaces Moved 15454 | 1 193 682 2668 747 3267 395 339 1129 1083 2496 361 185 639 246 412 124 389 98 Core 130 | . . . . . . . . . . . . . . . 86 . 2 42 Treads 12452 | . 118 682 2174 747 3267 259 339 1129 1083 1755 . . . 83 326 124 366 . Legs 2660 | 1 75 . 282 . . 136 . . . 741 361 185 639 163 . . 21 56 Wheels 212 | . . . 212 . . . . . . . . . . . . . . . Hover . | . . . . . . . . . . . . . . . . . . . Flight . | . . . . . . . . . . . . . . . . . . . Fastest Speed 50 | 120 120 160 120 610 160 120 160 160 160 160 195 195 189 160 160 160 50 50 Average Speed 238 | 120 144 160 227 610 275 180 160 160 160 191 195 195 194 184 596 160 205 124 Slowest Speed 2250 | 120 160 160 610 1260 610 250 160 160 160 240 195 195 195 240 2250 160 260 180 Overloaded Moves . | . . . . . . . . . . . . . . . . . . . Propulsion Burnouts . | . . . . . . . . . . . . . . . . . . . Robots Hopped 1 | . . . . . . . . . . . . . . . . . 1 . Cave-ins Triggered . | . . . . . . . . . . . . . . . . . . . Exploration Rate (%) 55 | 2 39 91 95 97 92 8 46 80 85 87 49 5 81 65 96 18 13 6 Regions Visited 18 Branch Regions 14 Pre-discovered Areas 12 | . . 2 1 5 . . 1 1 2 . . . . . . . . . Known Exits Taken 4 | . . . . . . 1 . . . . 1 1 . . . . 1 . Unknown Exits Taken 14 | 1 1 1 1 1 1 . 1 1 1 1 . . 1 1 1 1 . . Scrap Searched 21 | . . 1 6 . 7 . 1 2 3 . 1 . . . . . . . Spaces Dug 82 | . . . 6 . . 5 . 17 . 3 22 2 . . . 10 17 . Terrain Destroyed 423 | . . . 26 6 . 17 . 37 . 10 37 4 15 4 19 180 64 4 Melee . | . . . . . . . . . . . . . . . . . . . Projectile 175 | . . . 13 6 . 17 . 1 . 5 37 4 15 4 19 17 33 4 AOE 248 | . . . 13 . . . . 36 . 5 . . . . . 163 31 . Terrain Rammed . | . . . . . . . . . . . . . . . . . . . Walls Destroyed . | . . . . . . . . . . . . . . . . . . . Machines Disabled . | . . . . . . . . . . . . . . . . . . . Actions | -11 -10 -10 -10 -9 -9 -6 -6 -6 -6 -6 -5 -5 -5 -5 -5 -5 -4 -4 --------- Run | Yrd Mat Min Sub Rec Scr Fac Low Low Zio Dee Pro Fac Ext Cet Arc Hub Fac Arm Total 18816 | . 260 716 2895 820 3817 516 507 1366 1129 3145 413 196 833 324 635 142 616 486 Wait 2147 | . 17 . 33 55 480 8 148 186 4 487 14 2 78 8 165 2 96 364 Move 15435 | . 192 681 2667 746 3266 394 338 1128 1082 2495 360 184 638 245 411 123 387 98 Hop 1 | . . . . . . . . . . . . . . . . . 1 . Pick Up 145 | . 4 5 31 4 35 10 5 9 6 19 1 . 1 4 2 . 9 . Fast Attach 98 | . 3 . 10 1 2 22 3 . 1 21 3 1 2 16 9 . 3 1 Attach 44 | . 2 . 9 . 4 3 1 3 . 5 . 1 . 1 1 . 12 2 Detach 11 | . . . . . . 3 . . . 5 1 . . . . . 1 1 Swap 46 | . 3 3 8 1 1 4 1 6 2 9 . . . 2 1 1 4 . Drop 202 | . 4 1 30 3 29 21 7 9 6 37 5 4 5 24 7 . 10 . Fire 550 | . 35 19 94 8 . 47 4 23 1 58 29 4 42 24 39 16 93 14 Melee 7 | . . 7 . . . . . . . . . . . . . . . . Ram . | . . . . . . . . . . . . . . . . . . . Kick 1 | . . . . . . 1 . . . . . . . . . . . . Crush 5 | . . . . 2 . 3 . . . . . . . . . . . . Escape Stasis 15 | . . . . . . . . . . . . . 15 . . . . . Rewire 63 | . . . . . . . . 2 . 9 . . 52 . . . . . Trap . | . . . . . . . . . . . . . . . . . . . Miscellaneous 46 | . . . 13 . . . . . 27 . . . . . . . . 6 Route ------- -11/Scrapyard -10/Materials -10/Mines (discovered 3 exits: [*Mat x2] / *Sub) -10/Subcaves (discovered 3 exits: [*Mat x2] / *Rec) -9/Recycling (discovered 2 exits: [*Fac] / *Scr) -9/Scraptown (discovered 2 exits: *Fac x2) -6/Factory (discovered 4 exits: Fac x2 / *Low x2) -6/Lower Caves -6/Lower Caves (discovered 2 exits: *Fac / [*Zio]) -6/Zion (discovered 2 exits: [*Dee] / [*Pro]) -6/Deep Caves -5/Proximity Caves -5/Factory (discovered 4 exits: Upp x2 / *Ext x2) -5/Extension (discovered 2 exits: *Fac / *Cet) -5/Cetus (discovered 2 exits: *Fac / [*Arc]) -5/Archives (discovered 3 exits: *Fac / *Hub x2) -5/Hub_04(d) -4/Factory (discovered 3 exits: Upp x2 / *Arm) -4/Armory History --------- Turn | Location | Event 1 | -11/Scrapyard | Discovered new exit (range 0) 1 | -11/Scrapyard | Entered Materials 285 | -10/Materials | Discovered new exit (range 11) 315 | -10/Materials | Build established: Mutant 417 | -10/Materials | Entered Mines 547 | -10/Mines | Learned location of Storage (-9) 628 | -10/Mines | Assisted by bots powering up and referring to "LRC-V3" 678 | -10/Mines | Learned Materials terminal intel 729 | -10/Mines | Discovered new exit (range 9) 830 | -10/Mines | YI-UF0 nonchalantly dropped a Grenade Launcher on the ground 869 | -10/Mines | Murdered YI-UF0 872 | -10/Mines | Found Prototype Storage 912 | -10/Mines | Discovered new exit (range 9) 1290 | -10/Mines | Deemed a non-threat by the Exiles lab entrance 1581 | -10/Mines | Discovered new exit (range 6) 1595 | -10/Mines | Entered Subcaves 1595 | -10/Subcaves | Accompanied by 3 allies 1630 | -10/Subcaves | Discovered new exit (range 11) 1655 | -10/Subcaves | A Subdweller sparked back to life 1655 | -10/Subcaves | A Subdweller sparked back to life 1655 | -10/Subcaves | A Subdweller sparked back to life 1682 | -10/Subcaves | Found Prototype Device 1868 | -10/Subcaves | Ambushed by Subdweller buried in earth 1903 | -10/Subcaves | Lost 3 parts (1p1n1u) 2167 | -10/Subcaves | Build established: Scavenger-Mutant 2305 | -10/Subcaves | Core integrity fell below 50% 2470 | -10/Subcaves | Build established: Mutant 3661 | -10/Subcaves | Build established: Subdweller-Mutant 3706 | -10/Subcaves | Shifting Twisted Machinery released Sub. Power Source 3713 | -10/Subcaves | Shifting Twisted Machinery released Spk. Treads 3720 | -10/Subcaves | A swath of the cavern ceiling suddenly collapsed 4315 | -10/Subcaves | Discovered new exit (range 14) 4710 | -10/Subcaves | Shifting Twisted Machinery released Battle Rifle 4751 | -10/Subcaves | Shifting Twisted Machinery released Sub. Beam Cannon 4983 | -10/Subcaves | Core integrity fell below 20% 5432 | -10/Subcaves | Discovered new exit (range 13) 5578 | -10/Subcaves | Build established: Mutant 5837 | -10/Subcaves | Visited Clippyterm 5842 | -10/Subcaves | Learned 40 Factory zone layouts 6341 | -10/Subcaves | A swath of the cavern ceiling suddenly collapsed 6436 | -10/Subcaves | Build established: Scavenger-Mutant 6838 | -10/Subcaves | Identified Power Bank 6840 | -10/Subcaves | Attached Power Bank, gained temporary slots: Power x3 7244 | -10/Subcaves | Build established: Hauler-Mutant 7357 | -10/Subcaves | Found SUBCON Basin 8048 | -10/Subcaves | Entered Recycling 10685 | -9/Recycling | Discovered new exit (range 6) 11801 | -9/Recycling | Scanned before Scraplab entrance 11892 | -9/Recycling | Entered Scraplab 12693 | -9/Recycling | Discovered new exit (range 3) 12705 | -9/Recycling | Entered Scraptown 13633 | -9/Scraptown | Discovered new exit (range 11) 13974 | -9/Scraptown | Scanned Subdweller tech in exchange for log data 13999 | -9/Scraptown | Learned Factory garrison access intel 14005 | -9/Scraptown | Learned Research terminal intel 14011 | -9/Scraptown | Learned Research non-interactive machine intel 14398 | -9/Scraptown | Build established: Scavenger-Mutant 14439 | -9/Scraptown | Visited TADAMA 14533 | -9/Scraptown | Visited Bundlers 15526 | -9/Scraptown | Visited Cyclists 15606 | -9/Scraptown | Visited Observation Area 15759 | -9/Scraptown | Visited Cave Peace 15834 | -9/Scraptown | Visited UFD Registry 15844 | -9/Scraptown | Registered with UFD as "Wirecell" 15891 | -9/Scraptown | Entered Cyclist Reading Room 15961 | -9/Scraptown | Visited Assassins FH 16086 | -9/Scraptown | Visited Chapter 10 16159 | -9/Scraptown | Visited Abandonware Association 16181 | -9/Scraptown | Learned abandonware demo "OVRCLOCK.EXE" 16209 | -9/Scraptown | Learned abandonware demo "POISON.EXE" 16209 | -9/Scraptown | Learned abandonware demo "MELTYB.EXE" 16286 | -9/Scraptown | Visited Botcube Research 16305 | -9/Scraptown | Found Botcube 16348 | -9/Scraptown | Visited Infowarlord's Domain 16380 | -9/Scraptown | Visited Scrap Suit Storage 16450 | -9/Scraptown | Visited Scrapoid Pod Storage 16565 | -9/Scraptown | Delivered Scrap Shield to a Scientist 16688 | -9/Scraptown | Found Scrapoid Pod 16824 | -9/Scraptown | Visited Scrapoid Research Area 16886 | -9/Scraptown | Visited Junk Repository 16941 | -9/Scraptown | Visited Curators Association 17091 | -9/Scraptown | Visited Junk Repository 17777 | -9/Scraptown | Tech Extrapolator generated special schematic: Machine Rigger 17835 | -9/Scraptown | Tech Extrapolator generated special schematic: Vmp. Humpback 18790 | -9/Scraptown | Tech Extrapolator generated special schematic: Vmp. Brace Plating 19227 | -9/Scraptown | Found Exp. Terrain Scanner 20919 | -9/Scraptown | Found Scrap Suit 20923 | -9/Scraptown | Found Scrap Suit 21148 | -9/Scraptown | Botcube activated 21168 | -9/Scraptown | Botcube completed mutation into legged form, armed with 2 guns. 21511 | -9/Scraptown | Build established: Mutant 22047 | -9/Scraptown | Discovered new exit (range 5) 22236 | -9/Scraptown | Entered Factory 22236 | -6/Factory | Accompanied by 1 ally 22236 | -6/Factory | Evolved 8 slots: Power x1, Propulsion x2, Utility x5 22237 | -6/Factory | Identified exit to Lower Caves 22237 | -6/Factory | Identified YI-UF0's Bottomless Matter Pit 22238 | -6/Factory | Identified exit to Factory 22239 | -6/Factory | Loaded intel: 4 garrison access locations 22568 | -6/Factory | Build established: Scavenger-Mutant 22635 | -6/Factory | Fabricated Vmp. Brace Plating (x1) 22954 | -6/Factory | Scrapoid reinforcements arrived 23095 | -6/Factory | Tech Extrapolator generated special schematic: Active Sensor Spoofer 23165 | -6/Factory | Entered Lower Caves 23165 | -6/Lower Caves | Accompanied by 4 allies 23167 | -6/Lower Caves | UFD Scientist delivered a prototype 23167 | -6/Lower Caves | Attracted the attention of an 0b10 checkpoint 23187 | -6/Lower Caves | Found Prototype Protection 23363 | -6/Lower Caves | Scrapoid Pod released 06L12-D (x5) 23465 | -6/Lower Caves | Build established: Mutant 23599 | -6/Lower Caves | Discovered new exit (range 5) 23808 | -6/Lower Caves | Learned Factory security intel 23882 | -6/Lower Caves | Entered another Lower Caves area 23882 | -6/Lower Caves | Accompanied by 7 allies 23902 | -6/Lower Caves | Discovered exit to Factory (range 10) 24085 | -6/Lower Caves | Attracted the attention of an 0b10 checkpoint 24398 | -6/Lower Caves | Attracted the attention of an 0b10 outpost 24570 | -6/Lower Caves | Lost 4 allies 24608 | -6/Lower Caves | Discovered new exit (range 15) 24632 | -6/Lower Caves | Learned location of Extension (-5) 24756 | -6/Lower Caves | Found Prototype Device 24772 | -6/Lower Caves | Identified Heart of Steel 25554 | -6/Lower Caves | Heart of Steel transformed into Warbot 25962 | -6/Lower Caves | Entered Zion 25962 | -6/Zion | Accompanied by 4 allies (Warbot) 26065 | -6/Zion | Discovered new exit (range 9) 26118 | -6/Zion | Learned location of Warlord (-5) 26196 | -6/Zion | Found CR-A16's Pointy Stick 26440 | -6/Zion | Learned Factory interactive machine intel 26581 | -6/Zion | Learned Factory garrison access intel 26947 | -6/Zion | Turned away by Imprinter 27035 | -6/Zion | Learned location of Quarantine (-3) 27062 | -6/Zion | Tech Extrapolator generated special schematic: Heat Bomb Trap 27773 | -6/Zion | Discovered new exit (range 3) 27773 | -6/Zion | Saw the warning signs outside the Deep Caves entrance 27794 | -6/Zion | Entered Deep Caves 27794 | -6/Deep Caves | Accompanied by 4 allies (Warbot) 28005 | -6/Deep Caves | Attacked by Z-Imprinter 28016 | -6/Deep Caves | Allies destroyed Z-Imprinter 28113 | -6/Deep Caves | Z-Facility disabled 28685 | -6/Deep Caves | Discovered new exit (range 6) 29055 | -6/Deep Caves | Spotted AG-59127 29074 | -6/Deep Caves | Destroyed AG-59127 29096 | -6/Deep Caves | Lost 3 parts (1p1n1w) 29299 | -6/Deep Caves | Found Prototype Protection 29299 | -6/Deep Caves | Identified Zio. Weapon Casing 29319 | -6/Deep Caves | Found Prototype Protection 29319 | -6/Deep Caves | Identified Zio. Heavy Carapace 29378 | -6/Deep Caves | Build established: Scavenger-Mutant 29524 | -6/Deep Caves | Spotted AG-48560 29620 | -6/Deep Caves | Spotted AG-05855 29637 | -6/Deep Caves | Destroyed AG-05855 29637 | -6/Deep Caves | Core integrity fell below 50% 29718 | -6/Deep Caves | Triggered Deep Caves wall 29718 | -6/Deep Caves | Spotted AS-36979 29718 | -6/Deep Caves | Spotted AS-86183 29726 | -6/Deep Caves | Destroyed AS-86183 29726 | -6/Deep Caves | Exposed GOLEM chamber 29728 | -6/Deep Caves | Allies destroyed AS-36979 29745 | -6/Deep Caves | Destroyed 32 combat bots 31172 | -6/Deep Caves | Found Prototype Device 31172 | -6/Deep Caves | Identified Cloak of Protection 31246 | -6/Deep Caves | Found GOLEM Unit 31255 | -6/Deep Caves | Found GOLEM Unit 31421 | -6/Deep Caves | Identified Enh. Scrap Shield 31685 | -6/Deep Caves | Build established: Golem 31811 | -6/Deep Caves | Found Surveybot 24 Scanner 31813 | -6/Deep Caves | Found Surveybot 24 Chip 32761 | -6/Deep Caves | Found Zio. Weapon Casing 33293 | -6/Deep Caves | Entered Proximity Caves 33293 | -5/Proximity Caves | Accompanied by 1 ally (Warbot) 33403 | -5/Proximity Caves | Found Imp. Powered Armor 33477 | -5/Proximity Caves | Tech Extrapolator generated special schematic: Energy Deflector 33535 | -5/Proximity Caves | Spotted B-75 Beast 33559 | -5/Proximity Caves | Destroyed B-75 Beast 34041 | -5/Proximity Caves | Discovered exit to Factory (range 13) 34062 | -5/Proximity Caves | Learned Factory garrison access intel 34105 | -5/Proximity Caves | Entered Factory 34105 | -5/Factory | Accompanied by 1 ally (Warbot) 34105 | -5/Factory | Evolved 2 slots: Utility x2 34106 | -5/Factory | Identified exit to Upper Caves 34108 | -5/Factory | Loaded intel: 53 interactive machine locations 34109 | -5/Factory | Loaded intel: 3 garrison access locations 34269 | -5/Factory | Identified exit to Extension 34391 | -5/Factory | Scrapoid reinforcements arrived 34478 | -5/Factory | Lost 6 allies 34480 | -5/Factory | Entered Extension 34536 | -5/Extension | Rescued a captive Derelict 34555 | -5/Extension | Rescued a captive Derelict 34736 | -5/Extension | Rescued A7 34798 | -5/Extension | Rescued a captive Derelict 34810 | -5/Extension | Rescued a captive Derelict 34820 | -5/Extension | Rescued a captive Derelict 34845 | -5/Extension | Rescued a captive Derelict 35303 | -5/Extension | Spotted B-75 Beast 35315 | -5/Extension | Allies destroyed B-75 Beast 35329 | -5/Extension | Spotted B-75 Beast 35338 | -5/Extension | Destroyed B-75 Beast 35466 | -5/Extension | Rescued a captive Derelict 35517 | -5/Extension | Lost 3 allies 35632 | -5/Extension | Rescued a captive Derelict 35634 | -5/Extension | Rescued a captive Derelict 35795 | -5/Extension | Rescued a captive Derelict 35796 | -5/Extension | Rescued a captive Derelict 35953 | -5/Extension | Discovered new exit (range 10) 35955 | -5/Extension | Discovered new exit (range 6) 35980 | -5/Extension | First assault squad dispatched 35994 | -5/Extension | Disrupted transfer network 35996 | -5/Extension | Entered Cetus 35996 | -5/Cetus | Accompanied by 6 allies (A7) 36001 | -5/Cetus | Acquired a Cetus Manufacturing Module code from A7 36022 | -5/Cetus | Spotted Cetus Guard 36022 | -5/Cetus | Spotted Cetus Guard 36024 | -5/Cetus | Spotted Cetus Guard 36025 | -5/Cetus | Spotted Cetus Guard 36032 | -5/Cetus | Allies destroyed Cetus Guard 36041 | -5/Cetus | Destroyed Cetus Guard 36044 | -5/Cetus | Allies destroyed Cetus Guard 36047 | -5/Cetus | Destroyed Cetus Guard 36073 | -5/Cetus | System corruption reached 10% 36080 | -5/Cetus | Lost 7 allies 36151 | -5/Cetus | Escorted A7 to Cetus Mainframe 36169 | -5/Cetus | Started Cetus Manufacturing Module 36194 | -5/Cetus | Manufactured an Enhanced Grunt 36219 | -5/Cetus | Manufactured an Enhanced Grunt 36244 | -5/Cetus | Manufactured an Enhanced Grunt 36269 | -5/Cetus | Manufactured an Enhanced Grunt 36290 | -5/Cetus | Discovered new exit (range 16) 36294 | -5/Cetus | Manufactured an Enhanced Grunt 36326 | -5/Cetus | Spotted Cetus Guard 36326 | -5/Cetus | Spotted Cetus Guard 36328 | -5/Cetus | Spotted Cetus Guard 36328 | -5/Cetus | Spotted Cetus Guard 36338 | -5/Cetus | Allies destroyed Cetus Guard 36345 | -5/Cetus | Allies destroyed Cetus Guard 36351 | -5/Cetus | Allies destroyed Cetus Guard 36351 | -5/Cetus | Allies destroyed Cetus Guard 36356 | -5/Cetus | Discovered new exit (range 15) 36366 | -5/Cetus | Met Revision 17 36390 | -5/Cetus | System corruption reached 30% 36486 | -5/Cetus | Murdered A7 36492 | -5/Cetus | Extracted ID and sensor layout for unrecognized location from A7's data core 36501 | -5/Cetus | Found Prototype Protection 36501 | -5/Cetus | Identified Med. Regenerative Plating 36560 | -5/Cetus | Entered Archives 36560 | -5/Archives | Accompanied by 5 allies 36661 | -5/Archives | Discovered new exit (range 16) 36731 | -5/Archives | Discovered new exit (range 15) 36757 | -5/Archives | Discovered new exit (range 16) 36765 | -5/Archives | Build established: Scavenger-Golem 37180 | -5/Archives | Found Prototype Device 37180 | -5/Archives | Identified Exp. Thermal Shield 39318 | -5/Archives | Entered Hub_04(d) 39318 | -5/Hub_04(d) | Accompanied by 3 allies 39382 | -5/Hub_04(d) | Garrison activated, responded to threat 39457 | -5/Hub_04(d) | Discovered new exit (range 6) 39518 | -5/Hub_04(d) | Network Hub disabled 39567 | -5/Hub_04(d) | Entered Factory 39567 | -4/Factory | Accompanied by 1 ally 39567 | -4/Factory | Evolved 2 slots: Utility x2 39568 | -4/Factory | Loaded intel: 4 garrison access locations 39821 | -4/Factory | Identified exit to Upper Caves 39821 | -4/Factory | Identified exit to Armory 40221 | -4/Factory | Found Active Sensor Suite 40597 | -4/Factory | First assault squad dispatched 40617 | -4/Factory | Scrapoid reinforcements arrived 40649 | -4/Factory | Lost 5 parts (2p1u2w) 40696 | -4/Factory | Lost 4 allies 40744 | -4/Factory | Core integrity fell below 50% 40751 | -4/Factory | Core integrity fell below 20% 40751 | -4/Factory | Entered Armory 40777 | -4/Armory | Lost 15 parts (5n8u2w) 41001 | -4/Armory | First assault squad dispatched 41045 | -4/Armory | Build established: Hacker-Mutant 41208 | -4/Armory | System corruption reached 10% 41292 | -4/Armory | Destroyed by G-67 Veteran with Field Laser Last Messages --------------- 41213_ B-60 Warrior destroyed. 41215_ System corrupted: Energy discharge (-104). 41220_ Vmp. Brace Plating cannibalizes 14 core integrity to repair itself (+56). 41236_ 1FVSQB/PN948HH,:X%UGWHIJT F7Q5P9UF& 41239_ Vmp. Brace Plating cannibalizes 6 core integrity to repair itself (+21). 41251_ ALERT: Significant disruption in Zone 4Y, assault force dispatched. 41252_ F,% GMFEK#LNFB34GICBT#DU54AF97 41254_ Vmp. Brace Plating cannibalizes 18 core integrity to repair itself (+70). 41257_ Asb. Focal Cannon integration complete. 41258_ GOLEM Unit beginning Asb. Nanovents integration. 41259_ Asb. Nanovents integration complete. 41268_ Vmp. Brace Plating cannibalizes 1 core integrity to repair itself (+4). 41270_ Destroyed Lgt. Antimatter Reactor. 41276_ Unknown Processor melted. 41276_ L-61 Swordsman destroyed. 41279_ Acquired 69 matter. Map ----- +----------------------------------------------------+ | ????? # | | ?????????+##### ##+############### # | | ??????????????#??# #???# # | | ?????????????????# #???# # | | ?????????????????# """"!"""" #???# # | | ?????????????????# """"%=""" #???# # | | ?????????????????# """" """ #???# # | | ?????????????????# """" """" #???# # | | ?????????????????# =#???# # | | ?????????????????# """" """" #???# # | | ?????????????????# """" """" #???# # | | ?????????????????# """" """" !#???# # | | ?????????????????# """" """" #???# # | | ?????????????????# #???# # | | ?????????????????####/####"####???# # | | ????????????????????# #???##??????# # | | ???????????????????## ##??????????# # | | ???????????????????#" "#??????????# # | | ???????????????????## #####???????# # | | ???????????????????#" / #???????#### | | ???????????????????###### #??????????? | | ????????????????????????# #??????????? | | ????????????????????????# #??????????? | | ????????????????????????# #??????????? | | ????????????????????????# #??????????? | | ????????????????????????#@#??????????? | | ????????????????????????#/#??????????? | | ???????????????????????? !??????????? | | ???????????????????????? ??????????? | | ??????????????????????? !!! ?????????? | | ??????????????????????? !!! ?????????? | | ?????????????????????? !! ????????? | | ?????????????????????? g ????????? | | ????????????????????? """"???????? | | ????????????????????? """"???????? | | ???????????????????? """" ??????? | | ????????????????????" " ???????????? | | ??????????????????? "R" ???????????? | | ??????????????????????" ???????????? | | ??????????????????????###"???????????? | | ?????????????????????????????????????? | | ?????????????????????????????????????? | | ?????????????????????????????????????? | | ?????????????????????????????????????? | | ?????????????????????????????????????? | | ?????????????????????????????????????? | | ?????????????????????????????????????? | | ?????????????????????????????????????? | | ?????????????????????????????????????? | | ?????????????????????????????????????? | +----------------------------------------------------+ Best States ------------- Heat Dissipation 104 Energy Generation 45 Energy Capacity 1600 Matter Stores 300 Matter Capacity 300 Sight Range 16 Terrain Scan Range 30 Terrain Scan Density 2010 Armor Coverage 1200 Resistance: KI 15 Resistance: TH 25 Resistance: EX 15 Resistance: EM 15 Resistance: I 15 Resistance: S 15 Resistance: P 15 Weapon Shielding 100 Phase Shifting 5 Evasion (%) 55 Targeting Accuracy 8 Recoil Reduction 4 Salvage Targeting 4 Offensive Hacking 40 Defensive Hacking 10 Authchip Count 1 Item Schematics ----------------- Spk. Treads | -9/Scraptown | Extrapolated Mak. Leg | -9/Scraptown | Extrapolated Mak. Light Armor Plating | -9/Scraptown | Extrapolated Ripper | -9/Scraptown | Extrapolated Machine Rigger | -9/Scraptown | Extrapolated Vmp. Humpback | -9/Scraptown | Extrapolated Mak. Spear | -9/Scraptown | Extrapolated Mak. Trap Scanner | -9/Scraptown | Extrapolated Mak. Terrain Scanner | -9/Scraptown | Extrapolated 0b10 Decoder Chip [Generic] | -9/Scraptown | Extrapolated 0b10 Decoder Chip [Scout] | -9/Scraptown | Extrapolated 0b10 Decoder Chip [Skirmisher] | -9/Scraptown | Extrapolated Mak. Coolant Network | -9/Scraptown | Extrapolated Mak. Heavy Armor Plating | -9/Scraptown | Extrapolated Vmp. Brace Plating | -9/Scraptown | Extrapolated Battle Rifle | -9/Scraptown | Extrapolated Beamcaster | -6/Factory | Extrapolated Barrage Gun | -6/Factory | Extrapolated Spk. Medium Treads | -6/Factory | Extrapolated Tactical Coordination Suite | -6/Factory | Extrapolated Mak. ECM Suite | -6/Factory | Extrapolated Active Sensor Spoofer | -6/Factory | Extrapolated Hvy. Beamcaster | -6/Lower Caves | Extrapolated Mak. Flight Unit | -6/Lower Caves | Extrapolated Hvy. Battle Rifle | -6/Lower Caves | Extrapolated Lgt. Angular Momentum Engine | -6/Zion | Archive Mass Driver | -6/Zion | Archive Imp. Trap Scanner | -6/Zion | Archive Imp. Weapon Cycler | -6/Zion | Archive Proton Cannon | -6/Zion | Archive Adv. Target Analyzer | -6/Zion | Archive Centrium Wheel | -6/Zion | Archive Matter Compressor | -6/Zion | Archive Imp. System Restoration Module | -6/Zion | Archive Hvy. Phase Cannon | -6/Zion | Archive Imp. Recalibrator | -6/Zion | Archive EM Disruption Field | -6/Zion | Archive Power Amplifier | -6/Zion | Archive Disruptor Cannon | -6/Zion | Archive HERF Cannon | -6/Zion | Archive Mak. Targeting Computer | -6/Zion | Extrapolated Enh. Flamer | -6/Zion | Extrapolated Plasma Flamer | -6/Zion | Extrapolated Heat Bomb Trap | -6/Zion | Extrapolated Mak. Terrain Scan Processor | -6/Deep Caves | Extrapolated Mak. Weapon Shielding | -6/Deep Caves | Extrapolated Mak. Propulsion Shielding | -5/Proximity Caves | Extrapolated Energy Deflector | -5/Proximity Caves | Extrapolated Mak. Medium Armor Plating | -5/Proximity Caves | Extrapolated Mak. Thermal Plating | -5/Proximity Caves | Extrapolated Mak. Ablative Armor | -5/Proximity Caves | Extrapolated Mak. Core Shielding | -5/Extension | Extrapolated Mak. Hacking Suite | -5/Extension | Extrapolated Mak. System Shield | -5/Extension | Extrapolated Mak. Sensor Array | -5/Cetus | Extrapolated 0b10 Decoder Chip [Looter] | -5/Cetus | Extrapolated Mak. System Restoration Module | -5/Archives | Extrapolated Mak. Transmission Jammer | -4/Factory | Extrapolated Bore Cannon | -4/Factory | Extrapolated Multitool | -4/Factory | Extrapolated Robot Schematics ------------------ R-06 Scavenger | -6/Zion | Archive B-48 Gladiator | -6/Zion | Archive A-15 Conveyor | -6/Zion | Archive Fabricated ------------ Vmp. Brace Plating | x1 | -6/Factory | Authchip Alien Tech Used ----------------- None Achievements -------------- None Challenges ------------ None Game ------ Seed MatterActiveBeamcaster Manual? 0 Play Time 02:46:16 Cumulative 424.0 hours Start 2024.08.06 @ 01:57:45 End 2024.08.09 @ 14:17:34 Sessions 10 Manual Loads 0 Difficulty Rogue Special Mode None Game No. 431 Rogue 431 Adventurer 0 Explorer 0 Win Type - Total 30 Types 16/3/5/1/2/0/3/0/0 Lore% 84 Gallery% 88 Achievement% 82 Wizard Run 0 Options --------- Layout 0 ASCII 0 Keyboard 0 Movement Arrows Keybinds 0 Fullscreen 2 Font 24/Smallcaps Map View 76x50 Zoom Use 0% Tactical HUD 1 Map Filters NONE Filters NONE Steam 1 RUN: 1cc3cda0-c8fd-4eb7-8def-c21e31d07843